fUSD/lending_fUSD_20250105
["ID","MTS","AMOUNT","RATE_DAILY","PERIOD"]
[347703579,1736074244971,-5653.25388234,8.418e-05,2]
[347703580,1736074244980,-2879.51,8.418e-05,2]
[347703581,1736074244990,-1354.26,8.418e-05,2]
[347703582,1736074244999,-1354.26,8.418e-05,2]
[347703583,1736074245008,-510.35,8.418e-05,2]
[347703584,1736074245021,-500.0,8.418e-05,2]
[347703585,1736074245031,-2107.55,8.418e-05,2]
[347703586,1736074245040,-500.0,8.418e-05,2]
[347703587,1736074245050,-525.91,8.418e-05,2]
[347703588,1736074245060,-1540.46,8.418e-05,2]
[347703589,1736074245070,-1540.46,8.418e-05,2]
[347703590,1736074245079,-755.42,8.418e-05,2]
[347703591,1736074245089,-500.0,8.418e-05,2]
[347703592,1736074245099,-547.26,8.418e-05,2]
[347703593,1736074245109,-717.22,8.419e-05,2]
[347703594,1736074245119,-982.01,8.419e-05,2]
[347703595,1736074245130,-500.0,8.419e-05,2]
[347703596,1736074245140,-1000.0,8.419e-05,2]
[347703597,1736074245150,-868.08,8.419e-05,2]
[347703598,1736074245160,-933.26,8.419e-05,2]
[347703599,1736074245171,-1354.26,8.42e-05,2]
[347703600,1736074245183,-150.0,8.46e-05,2]
[347703601,1736074245196,-773.7842766,8.472e-05,2]
[347703602,1736074245205,-1354.26,8.492e-05,2]
[347703603,1736074245215,-1540.46,8.492e-05,2]
[347703604,1736074245225,-1540.46,8.492e-05,2]
[347703605,1736074245236,-2020.76,8.493e-05,2]
[347703606,1736074245247,-1387.24,8.493e-05,2]
[347703607,1736074245257,-2406.59,8.493e-05,2]
[347703608,1736074245269,-501.03672191,8.493e-05,2]
[347703609,1736074245279,-1558.72,8.493e-05,2]
[347703610,1736074245289,-500.0,8.493e-05,2]
[347703611,1736074245301,-580.53368935,8.493e-05,2]
[347703612,1736074245311,-1134.57,8.493e-05,2]
[347703613,1736074245320,-500.0,8.493e-05,2]
[347703614,1736074245330,-501.85174169,8.493e-05,2]
[347703615,1736074245341,-1673.22,8.493e-05,2]
[347703616,1736074245351,-4163.15,8.493e-05,2]
[347703617,1736074245361,-500.0,8.493e-05,2]
[347703618,1736074245370,-324.94156929,8.493e-05,2]
[347703619,1736074245380,-500.0,8.493e-05,2]
[347703620,1736074245389,-2342.67,8.493e-05,2]
[347703621,1736074245398,-220.39197896,8.493e-05,2]
[347703622,1736074245408,-500.0,8.493e-05,2]
[347703623,1736074245417,-500.0,8.493e-05,2]
[347703624,1736074245427,-500.0,8.493e-05,2]
[347703625,1736074245436,-500.0,8.493e-05,2]
[347703626,1736074245446,-500.0,8.493e-05,2]
[347703627,1736074245455,-500.0,8.493e-05,2]
[347703628,1736074245464,-500.0,8.493e-05,2]
[347703629,1736074245474,-500.0,8.493e-05,2]
[347703630,1736074245483,-500.0,8.493e-05,2]
[347703631,1736074245493,-500.0,8.493e-05,2]
[347703632,1736074245502,-235.25975,8.493e-05,2]
[347703633,1736074245512,-500.0,8.493e-05,2]
[347703634,1736074245521,-500.0,8.493e-05,2]
[347703635,1736074245531,-500.0,8.493e-05,2]
[347703636,1736074245542,-218.1380867,8.493e-05,2]
[347703637,1736074245552,-500.0,8.493e-05,2]
[347703638,1736074245561,-500.0,8.493e-05,2]
[347703639,1736074245570,-500.0,8.493e-05,2]
[347703640,1736074245581,-500.0,8.493e-05,2]
[347703641,1736074245590,-500.0,8.493e-05,2]
[347703642,1736074245599,-500.0,8.493e-05,2]
[347703643,1736074245608,-500.0,8.493e-05,2]
[347703644,1736074245617,-500.0,8.493e-05,2]
[347703645,1736074245627,-501.28449635,8.493e-05,2]
[347703646,1736074245636,-500.0,8.493e-05,2]
[347703647,1736074245646,-500.0,8.493e-05,2]
[347703648,1736074245656,-658.27,8.493e-05,2]
[347703649,1736074245668,-500.0,8.493e-05,2]
[347703650,1736074245678,-500.0,8.493e-05,2]
[347703651,1736074245687,-503.81896529,8.493e-05,2]
[347703652,1736074245697,-500.0,8.493e-05,2]
[347703653,1736074245715,-4140.24,8.493e-05,2]
[347703654,1736074245726,-500.0,8.493e-05,2]
[347703655,1736074245736,-285.30898531,8.493e-05,2]
[347703656,1736074245746,-500.0,8.493e-05,2]
[347703657,1736074245755,-500.0,8.493e-05,2]
[347703658,1736074245764,-500.0,8.493e-05,2]
[347703659,1736074245774,-500.0,8.493e-05,2]
[347703660,1736074245785,-348.73217868,8.493e-05,2]
[347703661,1736074245796,-500.0,8.493e-05,2]
[347703662,1736074245806,-500.0,8.493e-05,2]
[347703663,1736074245816,-500.0,8.493e-05,2]
[347703664,1736074245826,-500.0,8.493e-05,2]
[347703665,1736074245837,-500.0,8.493e-05,2]
[347703666,1736074245846,-500.0,8.493e-05,2]
[347703667,1736074245857,-500.0,8.493e-05,2]
[347703669,1736074245866,-500.0,8.493e-05,2]
[347703671,1736074245876,-973.48,8.493e-05,2]
[347703672,1736074245886,-500.0,8.493e-05,2]
[347703673,1736074245895,-538.42,8.493e-05,2]
[347703674,1736074245904,-500.0,8.493e-05,2]
[347703675,1736074245914,-500.0,8.493e-05,2]
[347703676,1736074245923,-500.0,8.493e-05,2]
[347703677,1736074245932,-524.34332142,8.493e-05,2]
[347703678,1736074245941,-500.0,8.493e-05,2]
[347703679,1736074245951,-500.0,8.493e-05,2]
[347703680,1736074245960,-500.0,8.493e-05,2]
[347703681,1736074245969,-500.0,8.493e-05,2]
[347703682,1736074245979,-500.0,8.493e-05,2]
[347703683,1736074245988,-500.0,8.493e-05,2]
[347703684,1736074245997,-976.91,8.493e-05,2]
[347703685,1736074246006,-500.0,8.493e-05,2]
[347703686,1736074246015,-500.0,8.493e-05,2]
[347703687,1736074246025,-500.0,8.493e-05,2]
[347703688,1736074246034,-500.0,8.493e-05,2]
[347703689,1736074246043,-500.0,8.493e-05,2]
[347703691,1736074246052,-500.0,8.493e-05,2]
[347703693,1736074246062,-500.0,8.493e-05,2]
[347703694,1736074246071,-587.5,8.493e-05,2]
[347703696,1736074246081,-500.0,8.493e-05,2]
[347703698,1736074246093,-500.0,8.493e-05,2]
[347703699,1736074246102,-500.0,8.493e-05,2]
[347703700,1736074246112,-500.0,8.493e-05,2]
[347703702,1736074246121,-500.0,8.493e-05,2]
[347703704,1736074246132,-500.0,8.493e-05,2]
[347703705,1736074246141,-500.0,8.493e-05,2]
[347703706,1736074246151,-500.0,8.493e-05,2]
[347703707,1736074246160,-500.0,8.493e-05,2]
[347703708,1736074246170,-500.0,8.493e-05,2]
[347703709,1736074246179,-500.0,8.493e-05,2]
[347703710,1736074246189,-500.0,8.493e-05,2]
[347703711,1736074246199,-500.0,8.493e-05,2]
[347703712,1736074246208,-500.0,8.493e-05,2]
[347703713,1736074246218,-500.0,8.493e-05,2]
[347703714,1736074246227,-500.0,8.493e-05,2]
[347703715,1736074246236,-636.04752352,8.493e-05,2]
[347703716,1736074246246,-500.0,8.493e-05,2]
[347703717,1736074246256,-337.78291414,8.493e-05,2]
[347703718,1736074246265,-500.0,8.493e-05,2]
[347703719,1736074246275,-500.0,8.493e-05,2]
[347703720,1736074246284,-500.0,8.493e-05,2]
[347703721,1736074246294,-501.99165444,8.493e-05,2]
[347703722,1736074246306,-6229.1,8.493e-05,2]
[347703723,1736074246315,-500.0,8.493e-05,2]
[347703724,1736074246325,-439.33220138,8.493e-05,2]
[347703725,1736074246334,-500.0,8.493e-05,2]
[347703726,1736074246343,-462.30224306,8.493e-05,2]
[347703727,1736074246353,-500.0,8.493e-05,2]
[347703728,1736074246363,-500.0,8.493e-05,2]
[347703729,1736074246374,-500.0,8.493e-05,2]
[347703730,1736074246385,-500.0,8.493e-05,2]
[347703731,1736074246393,-500.0,8.493e-05,2]
[347703732,1736074246402,-500.0,8.493e-05,2]
[347703733,1736074246412,-551.2915856,8.493e-05,2]
[347703734,1736074246422,-500.0,8.493e-05,2]
[347703735,1736074246432,-500.0,8.493e-05,2]
[347703736,1736074246441,-500.0,8.493e-05,2]
[347703737,1736074246451,-500.0,8.493e-05,2]
[347703738,1736074246460,-500.0,8.493e-05,2]
[347703739,1736074246470,-507.88,8.493e-05,2]
[347703740,1736074246751,-500.0,8.493e-05,2]
[347703741,1736074246761,-500.0,8.493e-05,2]
[347703742,1736074246771,-500.0,8.493e-05,2]
[347703743,1736074246781,-2182.41,8.493e-05,2]
[347703744,1736074246790,-500.0,8.493e-05,2]
[347703745,1736074246799,-500.0,8.493e-05,2]
[347703746,1736074246809,-500.0,8.493e-05,2]
[347703747,1736074246818,-500.0,8.493e-05,2]
[347703748,1736074246827,-500.0,8.493e-05,2]
[347703749,1736074246836,-500.0,8.493e-05,2]
[347703750,1736074246845,-500.0,8.493e-05,2]
[347703751,1736074246855,-406.24101157,8.493e-05,2]
[347703752,1736074246865,-500.0,8.493e-05,2]
[347703753,1736074246874,-918.33,8.493e-05,2]
[347703754,1736074246883,-500.0,8.493e-05,2]
[347703755,1736074246892,-500.0,8.493e-05,2]
[347703756,1736074246902,-500.0,8.493e-05,2]
[347703757,1736074246911,-1346.41,8.493e-05,2]
[347703758,1736074246920,-204.71361734,8.493e-05,2]
[347703759,1736074246930,-611.0,8.493e-05,2]
[347703760,1736074246938,-500.0,8.493e-05,2]
[347703761,1736074246948,-500.0,8.493e-05,2]
[347703762,1736074246957,-500.0,8.493e-05,2]
[347703763,1736074246966,-500.0,8.493e-05,2]
[347703764,1736074246976,-500.0,8.493e-05,2]
[347703765,1736074246985,-500.0,8.493e-05,2]
[347703766,1736074246995,-500.0,8.493e-05,2]
[347703767,1736074247004,-500.0,8.493e-05,2]
[347703768,1736074247014,-500.0,8.493e-05,2]
[347703769,1736074247023,-582.69,8.493e-05,2]
[347703770,1736074247032,-500.0,8.493e-05,2]
[347703771,1736074247042,-504.33,8.493e-05,2]
[347703772,1736074247052,-199.46862163,8.493e-05,2]
[347703773,1736074247060,-681.11,8.493e-05,2]
[347703774,1736074247069,-500.0,8.493e-05,2]
[347703775,1736074247079,-500.0,8.493e-05,2]
[347703776,1736074247088,-1139.61,8.493e-05,2]
[347703777,1736074247098,-954.23,8.493e-05,2]
[347703778,1736074247107,-500.0,8.493e-05,2]
[347703779,1736074247117,-500.0,8.493e-05,2]
[347703780,1736074247127,-500.0,8.493e-05,2]
[347703781,1736074247136,-500.0,8.493e-05,2]
[347703782,1736074247145,-500.0,8.493e-05,2]
[347703783,1736074247154,-1378.19,8.493e-05,2]
[347703784,1736074247164,-1016.48,8.493e-05,2]
[347703785,1736074247173,-500.0,8.493e-05,2]
[347703786,1736074247182,-500.0,8.493e-05,2]
[347703787,1736074247195,-500.0,8.493e-05,2]
[347703788,1736074247204,-500.0,8.493e-05,2]
[347703789,1736074247213,-500.0,8.493e-05,2]
[347703790,1736074247223,-500.0,8.493e-05,2]
[347703791,1736074247232,-500.0,8.493e-05,2]
[347703792,1736074247242,-500.0,8.493e-05,2]
[347703793,1736074247254,-500.0,8.493e-05,2]
[347703794,1736074247262,-500.0,8.493e-05,2]
[347703795,1736074247272,-500.0,8.493e-05,2]
[347703796,1736074247282,-500.0,8.493e-05,2]
[347703797,1736074247292,-623.87,8.493e-05,2]
[347703798,1736074247302,-837.36,8.493e-05,2]
[347703799,1736074247312,-500.0,8.493e-05,2]
[347703800,1736074247321,-500.0,8.493e-05,2]
[347703801,1736074247332,-500.0,8.493e-05,2]
[347703802,1736074247342,-500.0,8.493e-05,2]
[347703803,1736074247352,-500.0,8.493e-05,2]
[347703804,1736074247362,-609.8,8.493e-05,2]
[347703805,1736074247371,-500.0,8.493e-05,2]
[347703806,1736074247381,-500.0,8.493e-05,2]
[347703807,1736074247390,-500.0,8.493e-05,2]
[347703808,1736074247401,-1842.25,8.493e-05,2]
[347703809,1736074247411,-500.0,8.493e-05,2]
[347703810,1736074247423,-500.0,8.493e-05,2]
[347703811,1736074247433,-895.29,8.493e-05,2]
[347703812,1736074247443,-500.0,8.493e-05,2]
[347703813,1736074247453,-500.0,8.493e-05,2]
[347703814,1736074247464,-1284.52,8.493e-05,2]
[347703815,1736074247475,-1151.63,8.493e-05,2]
[347703816,1736074247484,-500.0,8.493e-05,2]
[347703817,1736074247495,-500.0,8.493e-05,2]
[347703818,1736074247506,-500.0,8.493e-05,2]
[347703819,1736074247518,-915.73,8.493e-05,2]
[347703820,1736074247528,-500.0,8.493e-05,2]
[347703821,1736074247538,-500.0,8.493e-05,2]
[347703822,1736074247548,-1975.83,8.493e-05,2]
[347703823,1736074247558,-579.87,8.493e-05,2]
[347703824,1736074247567,-500.0,8.493e-05,2]
[347703825,1736074247578,-1474.12,8.493e-05,2]
[347703826,1736074247587,-500.0,8.493e-05,2]
[347703827,1736074247597,-500.0,8.493e-05,2]
[347703828,1736074247606,-500.0,8.493e-05,2]
[347703829,1736074247616,-901.81,8.493e-05,2]
[347703830,1736074247626,-566.84,8.493e-05,2]
[347703831,1736074247636,-500.0,8.493e-05,2]
[347703832,1736074247646,-500.0,8.493e-05,2]
[347703833,1736074247656,-906.04,8.493e-05,2]
[347703834,1736074247666,-603.85,8.493e-05,2]
[347703835,1736074247677,-797.34,8.493e-05,2]
[347703836,1736074247687,-500.0,8.493e-05,2]
[347703837,1736074247698,-1052.7,8.493e-05,2]
[347703838,1736074247708,-660.43,8.493e-05,2]
[347703839,1736074247717,-500.0,8.493e-05,2]
[347703840,1736074247727,-500.0,8.493e-05,2]
[347703841,1736074247737,-500.0,8.493e-05,2]
[347703842,1736074247749,-1026.54,8.493e-05,2]
[347703843,1736074247761,-600.71,8.493e-05,2]
[347703844,1736074247772,-500.0,8.493e-05,2]
[347703845,1736074247782,-500.0,8.493e-05,2]
[347703846,1736074247791,-500.0,8.493e-05,2]
[347703847,1736074247802,-500.0,8.493e-05,2]
[347703848,1736074247811,-500.0,8.493e-05,2]
[347703849,1736074247822,-770.38,8.493e-05,2]
[347703850,1736074247831,-500.0,8.493e-05,2]
[347703851,1736074247841,-641.3,8.493e-05,2]
[347703852,1736074247851,-500.0,8.493e-05,2]
[347703853,1736074247861,-500.0,8.493e-05,2]
[347703854,1736074247871,-500.0,8.493e-05,2]
[347703855,1736074247881,-580.96,8.493e-05,2]
[347703856,1736074247892,-500.0,8.493e-05,2]
[347703857,1736074247902,-500.0,8.493e-05,2]
[347703858,1736074247914,-500.0,8.493e-05,2]
[347703859,1736074247923,-500.0,8.493e-05,2]
[347703860,1736074247935,-760.64,8.493e-05,2]
[347703861,1736074247944,-500.0,8.493e-05,2]
[347703862,1736074247955,-500.0,8.493e-05,2]
[347703863,1736074247966,-500.0,8.493e-05,2]
[347703864,1736074247975,-500.0,8.493e-05,2]
[347703865,1736074247984,-500.0,8.493e-05,2]
[347703866,1736074247995,-500.0,8.493e-05,2]
[347703867,1736074248005,-1433.28,8.493e-05,2]
[347703868,1736074248014,-1092.64,8.493e-05,2]
[347703869,1736074248024,-500.0,8.493e-05,2]
[347703870,1736074248033,-614.84,8.493e-05,2]
[347703871,1736074248043,-562.27,8.493e-05,2]
[347703872,1736074248053,-500.0,8.493e-05,2]
[347703873,1736074248062,-500.0,8.493e-05,2]
[347703874,1736074248071,-531.94,8.493e-05,2]
[347703875,1736074248081,-500.0,8.493e-05,2]
[347703876,1736074248091,-500.0,8.493e-05,2]
[347703877,1736074248100,-1664.48,8.493e-05,2]
[347703878,1736074248109,-500.0,8.493e-05,2]
[347703879,1736074248119,-500.0,8.493e-05,2]
[347703880,1736074248128,-1087.22,8.493e-05,2]
[347703881,1736074248137,-500.0,8.493e-05,2]
[347703882,1736074248147,-732.16,8.493e-05,2]
[347703883,1736074248156,-500.0,8.493e-05,2]
[347703884,1736074248165,-500.0,8.493e-05,2]
[347703885,1736074248174,-500.0,8.493e-05,2]
[347703886,1736074248183,-1694.58,8.493e-05,2]
[347703887,1736074248197,-500.0,8.493e-05,2]
[347703888,1736074248206,-500.0,8.493e-05,2]
[347703889,1736074248216,-838.07,8.493e-05,2]
[347703890,1736074248225,-502.78828552,8.493e-05,2]
[347703891,1736074248234,-968.97,8.493e-05,2]
[347703892,1736074248243,-500.0,8.493e-05,2]
[347703893,1736074248252,-1007.1,8.493e-05,2]
[347703894,1736074248262,-500.0,8.493e-05,2]
[347703895,1736074248271,-500.0,8.493e-05,2]
[347703896,1736074248281,-500.0,8.493e-05,2]
[347703897,1736074248290,-500.0,8.493e-05,2]
[347703898,1736074248301,-500.0,8.493e-05,2]
[347703899,1736074248310,-500.0,8.493e-05,2]
[347703900,1736074248319,-500.0,8.493e-05,2]
[347703901,1736074248329,-707.1,8.493e-05,2]
[347703902,1736074248338,-1698.26,8.493e-05,2]
[347703903,1736074248347,-500.0,8.493e-05,2]
[347703904,1736074248355,-696.0,8.493e-05,2]
[347703905,1736074248365,-500.0,8.493e-05,2]
[347703906,1736074248374,-500.0,8.493e-05,2]
[347703907,1736074248384,-500.0,8.493e-05,2]
[347703908,1736074248393,-500.0,8.493e-05,2]
[347703909,1736074248402,-1341.51,8.493e-05,2]
[347703910,1736074248412,-500.0,8.493e-05,2]
[347703911,1736074248422,-500.0,8.493e-05,2]
[347703912,1736074248431,-1472.31,8.493e-05,2]
[347703913,1736074248440,-500.0,8.493e-05,2]
[347703914,1736074248449,-1155.35,8.493e-05,2]
[347703915,1736074248458,-500.0,8.493e-05,2]
[347703916,1736074248468,-1366.99,8.493e-05,2]
[347703917,1736074248477,-765.29,8.493e-05,2]
[347703918,1736074248486,-500.0,8.493e-05,2]
[347703919,1736074248496,-1310.03,8.493e-05,2]
[347703920,1736074248506,-195.17,8.493e-05,2]
[347703921,1736074248515,-519.91,8.493e-05,2]
[347703922,1736074248525,-762.83,8.493e-05,2]
[347703923,1736074248534,-500.0,8.493e-05,2]
[347703924,1736074248543,-500.0,8.493e-05,2]
[347703925,1736074248553,-661.57,8.493e-05,2]
[347703926,1736074248562,-500.0,8.493e-05,2]
[347703927,1736074248572,-500.0,8.493e-05,2]
[347703928,1736074248581,-302.33,8.493e-05,2]
[347703929,1736074248591,-500.0,8.493e-05,2]
[347703930,1736074248600,-996.16,8.493e-05,2]
[347703931,1736074248609,-836.86,8.493e-05,2]
[347703932,1736074248618,-634.27,8.493e-05,2]
[347703933,1736074248627,-175.66420089,8.493e-05,2]
[347703934,1736074248637,-714.66,8.493e-05,2]
[347703935,1736074248646,-604.82,8.493e-05,2]
[347703936,1736074248655,-500.0,8.493e-05,2]
[347703937,1736074248664,-227.05140426,8.493e-05,2]
[347703938,1736074248673,-2546.46,8.493e-05,2]
[347703939,1736074248683,-500.0,8.493e-05,2]
[347703940,1736074248692,-500.0,8.493e-05,2]
[347703941,1736074248701,-1980.63,8.493e-05,2]
[347703942,1736074248711,-1078.75,8.493e-05,2]
[347703943,1736074248720,-500.0,8.493e-05,2]
[347703944,1736074248729,-534.5,8.493e-05,2]
[347703945,1736074248739,-1898.1,8.493e-05,2]
[347703946,1736074248748,-645.64671254,8.493e-05,2]
[347703947,1736074248757,-500.0,8.493e-05,2]
[347703948,1736074248766,-666.14,8.493e-05,2]
[347703949,1736074248775,-744.91,8.493e-05,2]
[347703950,1736074248785,-1161.39,8.493e-05,2]
[347703951,1736074248794,-500.0,8.493e-05,2]
[347703952,1736074248804,-509.58,8.493e-05,2]
[347703953,1736074248813,-500.0,8.493e-05,2]
[347703954,1736074248823,-965.34,8.493e-05,2]
[347703955,1736074248832,-500.0,8.493e-05,2]
[347703956,1736074248841,-617.78,8.493e-05,2]
[347703957,1736074248850,-1891.44,8.493e-05,2]
[347703958,1736074248860,-500.0,8.493e-05,2]
[347703959,1736074248869,-500.0,8.493e-05,2]
[347703960,1736074248878,-500.0,8.493e-05,2]
[347703961,1736074248887,-500.0,8.493e-05,2]
[347703962,1736074248897,-794.6,8.493e-05,2]
[347703963,1736074248907,-678.09,8.493e-05,2]
[347703964,1736074248916,-887.28,8.493e-05,2]
[347703965,1736074248926,-500.0,8.493e-05,2]
[347703966,1736074248935,-500.0,8.493e-05,2]
[347703967,1736074248944,-731.24,8.493e-05,2]
[347703968,1736074248954,-1987.19,8.493e-05,2]
[347703969,1736074248963,-768.61,8.493e-05,2]
[347703970,1736074248972,-501.78328228,8.493e-05,2]
[347703971,1736074248982,-758.37,8.493e-05,2]
[347703972,1736074248991,-500.0,8.493e-05,2]
[347703973,1736074249000,-1533.04,8.493e-05,2]
[347703974,1736074249009,-907.49,8.493e-05,2]
[347703975,1736074249019,-500.0,8.493e-05,2]
[347703976,1736074249028,-996.48,8.493e-05,2]
[347703977,1736074249037,-1214.41,8.493e-05,2]
[347703978,1736074249047,-500.0,8.493e-05,2]
[347703979,1736074249057,-687.7,8.493e-05,2]
[347703980,1736074249139,-500.0,8.493e-05,2]
[347703981,1736074249149,-1522.46,8.493e-05,2]
[347703982,1736074249158,-501.5459695,8.493e-05,2]
[347703983,1736074249167,-862.65,8.493e-05,2]
[347703984,1736074249176,-594.84,8.493e-05,2]
[347703985,1736074249185,-500.0,8.493e-05,2]
[347703986,1736074249195,-500.0,8.493e-05,2]
[347703987,1736074249204,-500.0,8.493e-05,2]
[347703988,1736074249214,-500.0,8.493e-05,2]
[347703989,1736074249226,-500.0,8.493e-05,2]
[347703990,1736074249235,-500.0,8.493e-05,2]
[347703991,1736074249244,-1340.08,8.493e-05,2]
[347703992,1736074249253,-1901.73,8.493e-05,2]
[347703993,1736074249265,-500.0,8.493e-05,2]
[347703994,1736074249276,-684.27,8.493e-05,2]
[347703995,1736074249285,-757.51,8.493e-05,2]
[347703996,1736074249295,-500.0,8.493e-05,2]
[347703997,1736074249305,-500.0,8.493e-05,2]
[347703998,1736074249314,-595.01,8.493e-05,2]
[347703999,1736074249324,-500.0,8.493e-05,2]
[347704000,1736074249333,-500.0,8.493e-05,2]
[347704001,1736074249342,-516.11,8.493e-05,2]
[347704002,1736074249351,-824.27,8.493e-05,2]
[347704003,1736074249361,-500.0,8.493e-05,2]
[347704004,1736074249370,-500.0,8.493e-05,2]
[347704005,1736074249380,-2165.45,8.493e-05,2]
[347704006,1736074249389,-500.0,8.493e-05,2]
[347704007,1736074249402,-500.0,8.493e-05,2]
[347704008,1736074249413,-300.28232872,8.493e-05,2]
[347704009,1736074249422,-1245.19,8.493e-05,2]
[347704010,1736074249431,-500.0,8.493e-05,2]
[347704011,1736074249440,-500.0,8.493e-05,2]
[347704012,1736074249449,-714.57,8.493e-05,2]
[347704013,1736074249458,-500.0,8.493e-05,2]
[347704014,1736074249467,-500.0,8.493e-05,2]
[347704015,1736074249476,-500.0,8.493e-05,2]
[347704016,1736074249485,-500.0,8.493e-05,2]
[347704017,1736074249494,-500.0,8.493e-05,2]
[347704018,1736074249503,-500.0,8.493e-05,2]
[347704019,1736074249513,-1225.56,8.493e-05,2]
[347704020,1736074249522,-3628.61,8.493e-05,2]
[347704021,1736074249531,-500.0,8.493e-05,2]
[347704022,1736074249540,-686.43,8.493e-05,2]
[347704023,1736074249549,-815.75,8.493e-05,2]
[347704024,1736074249559,-500.0,8.493e-05,2]
[347704025,1736074249568,-500.0,8.493e-05,2]
[347704026,1736074249577,-617.8764259,8.493e-05,2]
[347704027,1736074249587,-500.0,8.493e-05,2]
[347704028,1736074249597,-500.0,8.493e-05,2]
[347704029,1736074249607,-500.0,8.493e-05,2]
[347704030,1736074249616,-659.47,8.493e-05,2]
[347704031,1736074249625,-500.0,8.493e-05,2]
[347704032,1736074249634,-655.79,8.493e-05,2]
[347704033,1736074249643,-500.0,8.493e-05,2]
[347704034,1736074249652,-500.0,8.493e-05,2]
[347704035,1736074249661,-500.0,8.493e-05,2]
[347704036,1736074249670,-535.11,8.493e-05,2]
[347704037,1736074249679,-500.0,8.493e-05,2]
[347704038,1736074249688,-500.0,8.493e-05,2]
[347704039,1736074249697,-500.0,8.493e-05,2]
[347704040,1736074249706,-500.0,8.493e-05,2]
[347704041,1736074249716,-500.0,8.493e-05,2]
[347704042,1736074249725,-500.0,8.493e-05,2]
[347704043,1736074249734,-500.0,8.493e-05,2]
[347704044,1736074249742,-500.0,8.493e-05,2]
[347704045,1736074249751,-500.0,8.493e-05,2]
[347704046,1736074249760,-786.27,8.493e-05,2]
[347704047,1736074249769,-500.0,8.493e-05,2]
[347704048,1736074249778,-500.0,8.493e-05,2]
[347704049,1736074249787,-500.0,8.493e-05,2]
[347704050,1736074249795,-937.36,8.493e-05,2]
[347704051,1736074249806,-428.04,8.493e-05,2]
[347704052,1736074249815,-645.87,8.493e-05,2]
[347704053,1736074249824,-1290.95,8.493e-05,2]
[347704054,1736074249833,-559.93,8.493e-05,2]
[347704055,1736074249842,-500.0,8.493e-05,2]
[347704056,1736074249851,-500.0,8.493e-05,2]
[347704057,1736074249860,-964.23,8.493e-05,2]
[347704058,1736074249869,-803.09,8.493e-05,2]
[347704059,1736074249878,-3886.59,8.493e-05,2]
[347704060,1736074249887,-500.0,8.493e-05,2]
[347704061,1736074249896,-500.0,8.493e-05,2]
[347704062,1736074249905,-939.97,8.493e-05,2]
[347704063,1736074249914,-500.0,8.493e-05,2]
[347704064,1736074249925,-500.0,8.493e-05,2]
[347704065,1736074249934,-500.0,8.493e-05,2]
[347704066,1736074249943,-4358.9,8.493e-05,2]
[347704067,1736074249952,-500.0,8.493e-05,2]
[347704068,1736074249961,-500.0,8.493e-05,2]
[347704069,1736074249969,-500.0,8.493e-05,2]
[347704070,1736074249978,-1670.21,8.493e-05,2]
[347704071,1736074249987,-806.44,8.493e-05,2]
[347704072,1736074249996,-500.0,8.493e-05,2]
[347704073,1736074250006,-221.54316926,8.493e-05,2]
[347704074,1736074250015,-1156.69,8.493e-05,2]
[347704075,1736074250025,-612.04,8.493e-05,2]
[347704076,1736074250034,-500.0,8.493e-05,2]
[347704077,1736074250043,-500.0,8.493e-05,2]
[347704078,1736074250052,-1653.44,8.493e-05,2]
[347704079,1736074250061,-856.38,8.493e-05,2]
[347704080,1736074250070,-500.0,8.493e-05,2]
[347704081,1736074250080,-500.0,8.493e-05,2]
[347704082,1736074250089,-500.0,8.493e-05,2]
[347704083,1736074250098,-1155.44,8.493e-05,2]
[347704084,1736074250107,-500.0,8.493e-05,2]
[347704085,1736074250117,-500.0,8.493e-05,2]
[347704086,1736074250126,-500.0,8.493e-05,2]